fUSD/lending_fUSD_20240427
["ID","MTS","AMOUNT","RATE_DAILY","PERIOD"]
[323721025,1714195839141,-500.0,0.00012473,2]
[323721026,1714195839151,-1838.1,0.00012473,2]
[323721027,1714195839160,-500.0,0.00012473,2]
[323721028,1714195839170,-500.0,0.00012473,2]
[323721029,1714195839179,-500.0,0.00012473,2]
[323721030,1714195839188,-500.0,0.00012473,2]
[323721031,1714195839197,-500.0,0.00012473,2]
[323721032,1714195839206,-500.0,0.00012473,2]
[323721033,1714195839216,-512.62445394,0.00012473,2]
[323721034,1714195839224,-500.0,0.00012473,2]
[323721035,1714195839234,-503.09111417,0.00012473,2]
[323721036,1714195839242,-654.84,0.00012473,2]
[323721037,1714195839252,-500.0,0.00012473,2]
[323721038,1714195839261,-500.0,0.00012473,2]
[323721039,1714195839270,-150.0,0.00012474,2]
[323721040,1714195839280,-150.0,0.00012475,2]
[323721041,1714195839289,-1000.0,0.00012477,2]
[323721042,1714195839298,-8844.9134,0.00012477,2]
[323721043,1714195839306,-300.0,0.00012478,2]
[323721044,1714195839315,-947.0,0.00012478,2]
[323721045,1714195839326,-1000.0,0.00012478,2]
[323721046,1714195839335,-500.0,0.00012478,2]
[323721047,1714195839344,-1000.0,0.00012479,2]
[323721048,1714195839352,-1000.0,0.00012479,2]
[323721049,1714195839363,-500.0,0.00012479,2]
[323721050,1714195839373,-500.0,0.00012479,2]
[323721051,1714195839382,-3443.8017594,0.0001248,2]
[323721052,1714195839391,-182.78448016,0.0001248,2]
[323721053,1714195839400,-180.35486569,0.0001248,2]
[323721054,1714195839410,-2857.13373458,0.0001248,2]
[323721055,1714195839418,-207.39252307,0.0001248,2]
[323721056,1714195839427,-300.0,0.00012481,2]
[323721057,1714195839437,-150.0,0.00012481,2]
[323721058,1714195839446,-1500.0,0.00012483,2]
[323721059,1714195839455,-150.0,0.00012484,2]
[323721060,1714195839464,-1500.0,0.00012487,2]
[323721061,1714195839473,-150.0,0.00012487,2]
[323721062,1714195839482,-1500.0,0.0001249,2]
[323721063,1714195839491,-401.05565528,0.00012491,2]
[323721064,1714195839501,-300.0,0.00012492,2]
[323721065,1714195839510,-150.0,0.00012494,2]
[323721066,1714195839519,-1500.0,0.00012494,2]
[323721067,1714195839529,-150.0,0.00012495,2]
[323721068,1714195839538,-782.92468383,0.00012495,2]
[323721069,1714195839547,-150.0,0.00012498,2]
[323721070,1714195839556,-250.12652571,0.00012498,2]
[323721071,1714195839565,-150.0,0.00012499,2]
[323721072,1714195839575,-1000.0,0.000125,2]
[323721073,1714195839585,-150.0,0.000125,2]
[323721074,1714195839594,-250000.0,0.000125,2]
[323721075,1714195839602,-3900.0,0.000125,4]
[323721076,1714195839611,-150.0,0.00012502,2]
[323721077,1714195839620,-150.0,0.00012504,2]
[323721078,1714195839628,-150.0,0.00012505,2]
[323721079,1714195839642,-1500.0,0.00012505,2]
[323721080,1714195839651,-191.12304706,0.00012505,2]
[323721081,1714195839661,-302.34340948,0.00012507,2]
[323721082,1714195839670,-150.0,0.00012507,2]
[323721083,1714195839680,-150.0,0.00012508,2]
[323721084,1714195839689,-150.0,0.00012508,2]
[323721085,1714195839698,-150.0,0.00012508,2]
[323721086,1714195839708,-150.0,0.00012508,2]
[323721087,1714195839717,-150.0,0.00012509,2]
[323721088,1714195839727,-1500.0,0.00012509,2]
[323721089,1714195839736,-150.0,0.00012512,2]
[323721090,1714195839746,-1500.0,0.00012512,2]
[323721091,1714195839755,-1500.0,0.00012515,2]
[323721092,1714195839765,-150.0,0.00012515,2]
[323721093,1714195839774,-300.0,0.00012516,2]
[323721094,1714195839784,-150.0,0.00012516,2]
[323721095,1714195839793,-150.0,0.00012517,2]
[323721096,1714195839803,-3443.8017593,0.00012518,2]
[323721097,1714195839812,-150.0,0.00012524,2]
[323721098,1714195839821,-150.0,0.00012524,2]
[323721099,1714195839832,-150.0,0.00012524,2]
[323721100,1714195839841,-1500.0,0.00012526,2]
[323721101,1714195839850,-150.0,0.00012526,2]
[323721102,1714195839860,-150.0,0.00012526,2]
[323721103,1714195839870,-150.0,0.00012531,2]
[323721104,1714195839879,-150.0,0.00012534,2]
[323721105,1714195839888,-150.0,0.00012535,2]
[323721106,1714195839897,-150.0,0.00012536,2]
[323721107,1714195839907,-150.0,0.0001254,2]
[323721108,1714195839916,-150.0,0.00012542,2]
[323721109,1714195839926,-150.0,0.00012545,2]
[323721110,1714195839935,-1500.0,0.00012546,2]
[323721111,1714195839944,-1500.0,0.00012548,2]
[323721112,1714195839954,-150.0,0.0001255,2]
[323721113,1714195839964,-150.0,0.00012553,2]
[323721114,1714195839973,-150.0,0.00012556,2]
[323721115,1714195839983,-150.0,0.00012556,2]
[323721116,1714195839993,-3443.8017593,0.00012556,2]
[323721117,1714195840002,-1500.0,0.0001256,2]
[323721118,1714195840011,-150.0,0.0001256,2]
[323721119,1714195840021,-150.0,0.00012561,2]
[323721120,1714195840030,-150.0,0.00012561,2]
[323721121,1714195840039,-150.0,0.00012562,2]
[323721122,1714195840049,-4599.15490061,0.00012564,2]
[323721123,1714195840058,-1500.0,0.00012564,2]
[323721124,1714195840067,-150.0,0.00012565,2]
[323721125,1714195840078,-1500.0,0.00012565,2]
[323721126,1714195840088,-150.0,0.00012566,2]
[323721127,1714195840097,-150.0,0.00012566,2]
[323721128,1714195840106,-150.0,0.00012566,2]
[323721129,1714195840116,-150.0,0.00012566,2]
[323721130,1714195840126,-1500.0,0.00012567,2]
[323721131,1714195840136,-3834.1627725,0.00012567,2]
[323721132,1714195840145,-2728.8856747,0.00012567,2]
[323721133,1714195840155,-1015.3336536,0.00012567,2]
[323721134,1714195840165,-171.3447146,0.00012567,2]
[323721135,1714195840175,-150.0,0.00012568,2]
[323721136,1714195840184,-150.0,0.00012569,2]
[323721137,1714195840194,-1500.0,0.0001257,2]
[323721138,1714195840204,-3505.4513946,0.00012571,2]
[323721139,1714195840214,-2494.9321825,0.00012571,2]
[323721140,1714195840223,-928.2868212,0.00012571,2]
[323721141,1714195840233,-171.3447146,0.00012571,2]
[323721142,1714195840242,-500.0,0.00012574,2]
[323721143,1714195840252,-505.84660403,0.00012574,2]
[323721144,1714195840261,-500.0,0.00012574,2]
[323721145,1714195840271,-522.67981214,0.00012574,2]
[323721146,1714195840281,-500.0,0.00012574,2]
[323721147,1714195840291,-500.0,0.00012574,2]
[323721148,1714195840300,-500.0,0.00012574,2]
[323721149,1714195840310,-500.0,0.00012574,2]
[323721150,1714195840320,-500.0,0.00012574,2]
[323721151,1714195840331,-500.0,0.00012574,2]
[323721152,1714195840341,-483.53368875,0.00012574,2]
[323721153,1714195840351,-500.0,0.00012574,2]
[323721154,1714195840362,-500.0,0.00012574,2]
[323721155,1714195840373,-209.53684703,0.00012574,2]
[323721156,1714195840383,-500.0,0.00012574,2]
[323721157,1714195840393,-505.43875475,0.00012574,2]
[323721158,1714195840404,-500.0,0.00012574,2]
[323721159,1714195840413,-500.0,0.00012574,2]
[323721160,1714195840423,-500.0,0.00012574,2]
[323721161,1714195840432,-500.0,0.00012574,2]
[323721162,1714195840442,-503.84956728,0.00012574,2]
[323721163,1714195840451,-500.0,0.00012574,2]
[323721164,1714195840461,-500.0,0.00012574,2]
[323721165,1714195840470,-500.0,0.00012574,2]
[323721166,1714195840480,-500.0,0.00012574,2]
[323721167,1714195840489,-500.0,0.00012574,2]
[323721168,1714195840498,-500.0,0.00012574,2]
[323721169,1714195840507,-850.72,0.00012574,2]
[323721170,1714195840517,-500.0,0.00012574,2]
[323721171,1714195840526,-500.0,0.00012574,2]
[323721172,1714195840535,-500.0,0.00012574,2]
[323721173,1714195840545,-804.43,0.00012574,2]
[323721174,1714195840555,-500.0,0.00012574,2]
[323721175,1714195840564,-500.0,0.00012574,2]
[323721176,1714195840779,-500.0,0.00012574,2]
[323721177,1714195840789,-150.0,0.00012574,2]
[323721178,1714195840799,-500.0,0.00012574,2]
[323721179,1714195840809,-500.0,0.00012574,2]
[323721180,1714195840818,-500.0,0.00012574,2]
[323721181,1714195840828,-500.0,0.00012574,2]
[323721182,1714195840837,-500.0,0.00012574,2]
[323721183,1714195840846,-500.0,0.00012574,2]
[323721184,1714195840856,-500.0,0.00012574,2]
[323721185,1714195840865,-500.0,0.00012574,2]
[323721186,1714195840874,-500.0,0.00012574,2]
[323721187,1714195840883,-500.0,0.00012574,2]
[323721188,1714195840892,-500.0,0.00012574,2]
[323721189,1714195840901,-500.0,0.00012574,2]
[323721190,1714195840912,-500.0,0.00012574,2]
[323721191,1714195840921,-500.0,0.00012574,2]
[323721192,1714195840930,-500.0,0.00012574,2]
[323721193,1714195840939,-500.0,0.00012574,2]
[323721194,1714195840949,-500.0,0.00012574,2]
[323721195,1714195840958,-500.0,0.00012574,2]
[323721196,1714195840968,-500.0,0.00012574,2]
[323721197,1714195840976,-500.0,0.00012574,2]
[323721198,1714195840985,-565.23334801,0.00012574,2]
[323721199,1714195840995,-500.0,0.00012574,2]
[323721200,1714195841005,-238.66,0.00012574,2]
[323721201,1714195841014,-500.0,0.00012574,2]
[323721202,1714195841023,-3881.03,0.00012574,2]
[323721203,1714195841032,-500.0,0.00012574,2]
[323721204,1714195841041,-500.0,0.00012574,2]
[323721205,1714195841051,-500.0,0.00012574,2]
[323721206,1714195841061,-500.0,0.00012574,2]
[323721207,1714195841071,-5242.92,0.00012574,2]
[323721208,1714195841082,-1651.91,0.00012574,2]
[323721209,1714195841091,-500.0,0.00012574,2]
[323721210,1714195841100,-767.93,0.00012574,2]
[323721211,1714195841109,-500.0,0.00012574,2]
[323721212,1714195841119,-500.0,0.00012574,2]
[323721213,1714195841128,-500.0,0.00012574,2]
[323721214,1714195841138,-502.63220419,0.00012574,2]
[323721215,1714195841147,-953.32,0.00012574,2]
[323721216,1714195841156,-500.0,0.00012574,2]
[323721217,1714195841165,-500.0,0.00012574,2]
[323721218,1714195841174,-1760.06,0.00012574,2]
[323721220,1714195841183,-500.0,0.00012574,2]
[323721222,1714195841192,-500.0,0.00012574,2]
[323721224,1714195841201,-254.39655378,0.00012574,2]
[323721226,1714195841209,-500.0,0.00012574,2]
[323721228,1714195841219,-500.0,0.00012574,2]
[323721230,1714195841228,-500.0,0.00012574,2]
[323721232,1714195841237,-500.0,0.00012574,2]
[323721233,1714195841245,-500.0,0.00012574,2]
[323721235,1714195841255,-500.0,0.00012574,2]
[323721237,1714195841264,-500.0,0.00012574,2]
[323721239,1714195841273,-500.0,0.00012574,2]
[323721241,1714195841282,-500.0,0.00012574,2]
[323721243,1714195841291,-1212.62,0.00012574,2]
[323721245,1714195841301,-463.8683086,0.00012574,2]
[323721247,1714195841310,-500.0,0.00012574,2]
[323721249,1714195841319,-500.0,0.00012574,2]
[323721251,1714195841329,-500.0,0.00012574,2]
[323721253,1714195841338,-500.0,0.00012574,2]
[323721255,1714195841347,-500.0,0.00012574,2]
[323721257,1714195841356,-500.0,0.00012574,2]
[323721259,1714195841368,-500.0,0.00012574,2]
[323721261,1714195841377,-749.7,0.00012574,2]
[323721263,1714195841385,-500.0,0.00012574,2]
[323721264,1714195841394,-151.0,0.00012574,2]
[323721265,1714195841403,-508.92781481,0.00012574,2]
[323721266,1714195841413,-502.54298295,0.00012574,2]
[323721267,1714195841422,-500.0,0.00012574,2]
[323721268,1714195841431,-500.0,0.00012574,2]
[323721269,1714195841440,-500.0,0.00012574,2]
[323721270,1714195841450,-519.17903053,0.00012574,2]
[323721271,1714195841459,-187.25078235,0.00012574,2]
[323721272,1714195841468,-500.0,0.00012574,2]
[323721273,1714195841477,-500.0,0.00012574,2]
[323721274,1714195841486,-151.0,0.00012574,2]
[323721275,1714195841495,-151.0,0.00012574,2]
[323721276,1714195841504,-500.0,0.00012574,2]
[323721277,1714195841513,-504.00336468,0.00012574,2]
[323721278,1714195841522,-500.0,0.00012574,2]
[323721279,1714195841532,-500.0,0.00012574,2]
[323721280,1714195841540,-500.0,0.00012574,2]
[323721281,1714195841550,-500.0,0.00012574,2]
[323721282,1714195841559,-239.13779248,0.00012574,2]
[323721283,1714195841568,-509.11674349,0.00012574,2]
[323721284,1714195841577,-501.43437027,0.00012574,2]
[323721285,1714195841587,-899.97,0.00012574,2]
[323721286,1714195841595,-609.75,0.00012574,2]
[323721287,1714195841606,-500.0,0.00012574,2]
[323721288,1714195841615,-500.0,0.00012574,2]
[323721289,1714195841624,-500.0,0.00012574,2]
[323721290,1714195841633,-500.0,0.00012574,2]
[323721291,1714195841643,-514.52781539,0.00012574,2]
[323721292,1714195841652,-500.0,0.00012574,2]
[323721293,1714195841661,-500.0,0.00012574,2]
[323721294,1714195841670,-507.76330781,0.00012574,2]
[323721295,1714195841680,-500.0,0.00012574,2]
[323721296,1714195841689,-500.0,0.00012574,2]
[323721297,1714195841698,-500.0,0.00012574,2]
[323721298,1714195841707,-817.48,0.00012574,2]
[323721299,1714195841715,-500.0,0.00012574,2]
[323721300,1714195841724,-500.0,0.00012574,2]
[323721301,1714195841733,-500.0,0.00012574,2]
[323721302,1714195841742,-500.0,0.00012574,2]
[323721303,1714195841751,-151.0,0.00012574,2]
[323721304,1714195841760,-201.389422,0.00012574,2]
[323721305,1714195841769,-500.0,0.00012574,2]
[323721306,1714195841778,-508.53477273,0.00012574,2]
[323721307,1714195841786,-345.33034063,0.00012574,2]
[323721308,1714195841795,-500.0,0.00012574,2]
[323721309,1714195841805,-201.389422,0.00012574,2]
[323721310,1714195841814,-495.71144207,0.00012574,2]
[323721311,1714195841823,-575.78352479,0.00012574,2]
[323721312,1714195841833,-500.0,0.00012574,2]
[323721313,1714195841842,-500.0,0.00012574,2]
[323721314,1714195841851,-500.0,0.00012574,2]
[323721315,1714195841860,-500.0,0.00012574,2]
[323721316,1714195841869,-1367.92,0.00012574,2]
[323721317,1714195841878,-500.0,0.00012574,2]
[323721318,1714195841888,-500.0,0.00012574,2]
[323721319,1714195841897,-1145.41,0.00012574,2]
[323721320,1714195841906,-500.0,0.00012574,2]
[323721321,1714195841915,-500.0,0.00012574,2]
[323721322,1714195841924,-500.0,0.00012574,2]
[323721323,1714195841933,-500.0,0.00012574,2]
[323721324,1714195841943,-500.0,0.00012574,2]
[323721325,1714195841953,-500.0,0.00012574,2]
[323721326,1714195841963,-2572.73,0.00012574,2]
[323721327,1714195841972,-500.0,0.00012574,2]
[323721328,1714195841981,-500.0,0.00012574,2]
[323721329,1714195841990,-500.0,0.00012574,2]
[323721330,1714195841999,-500.0,0.00012574,2]
[323721331,1714195842008,-1000.34,0.00012574,2]
[323721332,1714195842018,-847.56,0.00012574,2]
[323721333,1714195842027,-1086.41,0.00012574,2]
[323721334,1714195842036,-500.0,0.00012574,2]
[323721335,1714195842045,-500.0,0.00012574,2]
[323721336,1714195842054,-500.0,0.00012574,2]
[323721337,1714195842063,-552.77410438,0.00012574,2]
[323721338,1714195842072,-500.0,0.00012574,2]
[323721339,1714195842082,-435.50714688,0.00012574,2]
[323721340,1714195842322,-64.49285312,0.00012574,2]
[323721341,1714195842333,-545.91748064,0.00012574,2]
[323721342,1714195842342,-500.0,0.00012574,2]
[323721343,1714195842351,-500.0,0.00012574,2]
[323721344,1714195842362,-500.0,0.00012574,2]
[323721345,1714195842375,-5442.61773245,0.00012575,2]
[323721346,1714195842415,-348.26344137,0.00012575,2]
[323721347,1714195842897,-150.0,0.00012383,2]
[323721348,1714195842908,-150.0,0.00012388,2]
[323721349,1714195842918,-150.0,0.00012415,2]
[323721350,1714195842927,-150.0,0.0001242,2]
[323721351,1714195842936,-150.0,0.0001242,2]
[323721352,1714195842945,-150.0,0.00012425,2]
[323721353,1714195842954,-150.0,0.00012425,2]
[323721354,1714195842964,-279.74,0.00012434,2]
[323721363,1714195843559,-15.3605318,0.00012434,2]
[323721364,1714195843569,-150.0,0.00012456,2]
[323721365,1714195843579,-127.1394682,0.00012457,2]
[323721371,1714195846226,-501.57469479,0.00012199,2]
[323721372,1714195846235,-168.41350315,0.00012199,2]
[323721373,1714195846244,-500.0,0.00012199,2]
[323721374,1714195846253,-22.8605318,0.00012457,2]
[323721375,1714195846263,-150.0,0.00012466,2]
[323721376,1714195846272,-150.0,0.00012467,2]
[323721377,1714195846281,-216.0675251,0.0001247,2]
[323721378,1714195846290,-121.62716515,0.00012471,2]
[323721400,1714195846921,-28.37283485,0.00012471,2]
[323721401,1714195846932,-500.0,0.00012473,2]
[323721402,1714195846941,-500.0,0.00012473,2]
[323721403,1714195846952,-71.00067542,0.00012477,2]
[323721404,1714196253534,-164.70595406,0.000108,2]
[323721405,1714196253557,-155.0,0.000109,2]
[323721406,1714196263166,545.11,9.491e-05,2]
[323721407,1714196266440,500.7629608,0.00025,120]
[323721408,1714196311490,155.0,0.000109,2]
[323721409,1714196319569,1235.18404594,0.00010796,2]
[323721411,1714196607870,2000.0,0.000249,120]
[323721412,1714196666758,2010.0,0.000249,120]
[323721413,1714196722604,2000.0,0.000249,120]
[323721465,1714197031517,-1609.11132883,9.074e-05,2]
[323721466,1714197031526,-155.0,9.074e-05,2]
[323721467,1714197031535,-517.85,9.075e-05,2]
[323721468,1714197031545,-427.33773077,0.0001,2]
[323721469,1714197031554,-955.047627,0.00010434,2]
[323721470,1714197031563,-54.59076557,0.000106,2]
[323721471,1714197031607,-201.2362423,0.000106,2]
[323721472,1714197031616,-409.94,0.00010745,2]
[323721473,1714197031625,-150.0,0.00010767,2]
[323721474,1714197031637,-72.18377602,0.00010856,2]
[323721475,1714197031648,-537.12016184,0.00010856,2]
[323721476,1714197031676,-3094.8462679,0.00010856,2]
[323721477,1714197031688,-2031.58559168,0.00010856,2]
[323721478,1714197031710,-2815.80071661,0.00010856,2]
[323721479,1714197031721,-705.76,0.00010856,2]
[323721480,1714197031740,-657.25,0.00010856,2]
[323721481,1714197031753,-623.17277901,0.00010856,2]
[323721482,1714197031781,-1226.82673284,0.00010856,2]
[323721493,1714197037477,-583.03898459,0.00010856,2]
[323721512,1714197037685,-878.42882759,0.00010856,2]
[323721513,1714197037701,-275.96458678,0.00010856,2]
[323721514,1714197037713,-362.26956143,0.00010856,2]
[323721515,1714197037726,-328.92787868,0.00010856,2]
[323721516,1714197037738,-568.59559293,0.00010856,2]
[323721517,1714197037754,-1229.7413409,0.00010856,2]
[323721518,1714197037766,-3499.8,0.00010856,2]
[323721519,1714197037779,-3031.08389438,0.00010856,2]
[323721520,1714197037840,-1367.60330682,0.00010856,2]
[323721521,1714197037851,-155.0,0.000109,2]
[323721522,1714197037863,-1012.18,0.0001092,2]
[323721523,1714197037874,-580.02,0.00010922,2]
[323721524,1714197037883,-1124.23,0.00010959,2]
[323721525,1714197037894,-250.0,0.00010965,2]
[323721526,1714197037905,-184.38,0.00011074,2]
[323721527,1714197037919,-230.4,0.00011199,2]
[323721528,1714197037929,-517.85,0.00011339,2]
[323721529,1714197037940,-151.9,0.00011411,2]
[323721530,1714197037950,-528.37,0.00011778,2]
[323721531,1714197037959,-350.59,0.00011778,2]
[323721532,1714197037969,-110.81734584,0.00011778,2]
[323721533,1714197037982,-189.18265416,0.00011778,2]
[323721534,1714197037991,-350.59,0.00011778,2]
[323721535,1714197038002,-300.0,0.00011778,2]
[323721536,1714197038010,-350.59,0.00011778,2]
[323721537,1714197038020,-350.59,0.00011778,2]
[323721538,1714197038030,-350.59,0.00011778,2]
[323721539,1714197038039,-584.12683655,0.00012099,2]
[323721540,1714197038108,-6915.87316345,0.00012099,2]
[323721541,1714197038118,-300.0,0.000121,4]
[323721542,1714197038128,-3970.83515453,0.00012198,2]
[323721543,1714197038136,-502.9041695,0.00012198,2]
[323721544,1714197038146,-172.41589739,0.00012198,2]
[323721545,1714197038155,-500.0,0.00012198,2]
[323721546,1714197038165,-500.0,0.00012198,2]
[323721547,1714197038174,-508.07852421,0.00012198,2]
[323721548,1714197038183,-455.62009401,0.00012198,2]
[323721549,1714197038192,-500.0,0.00012198,2]
[323721550,1714197038201,-448.43060483,0.00012198,2]
[323721551,1714197038211,-500.0,0.00012198,2]
[323721552,1714197038219,-132.9352814,0.00012198,2]
[323721554,1714197039583,-367.0647186,0.00012198,2]
[323721555,1714197039593,-500.0,0.00012198,2]
[323721556,1714197039603,-500.0,0.00012198,2]
[323721557,1714197039612,-500.0,0.00012198,2]
[323721558,1714197039621,-500.0,0.00012198,2]
[323721559,1714197039631,-500.0,0.00012198,2]
[323721560,1714197039640,-500.0,0.00012198,2]
[323721561,1714197039649,-500.0,0.00012198,2]
[323721562,1714197039658,-502.75605454,0.00012198,2]
[323721563,1714197039669,-500.0,0.00012198,2]
[323721564,1714197039678,-500.0,0.00012198,2]
[323721565,1714197039687,-305.65898772,0.00012198,2]
[323721566,1714197039696,-500.0,0.00012198,2]
[323721567,1714197039709,-500.0,0.00012198,2]
[323721568,1714197039719,-500.0,0.00012198,2]
[323721569,1714197039729,-500.0,0.00012198,2]
[323721570,1714197039739,-154.3270309,0.00012198,2]
[323721571,1714197039752,-335.99695862,0.00012198,2]
[323721572,1714197039779,-164.00304138,0.00012198,2]
[323721573,1714197039788,-627.14272384,0.00012198,2]
[323721574,1714197039798,-500.0,0.00012198,2]
[323721575,1714197039807,-500.0,0.00012198,2]
[323721576,1714197039816,-136.99173478,0.00012198,2]
[323721577,1714197039828,-363.00826522,0.00012198,2]
[323721578,1714197039837,-205.3650287,0.00012198,2]
[323721579,1714197039901,-294.6349713,0.00012198,2]
[323721581,1714197039910,-500.0,0.00012198,2]
[323721583,1714197039921,-500.0,0.00012198,2]
[323721585,1714197039929,-500.0,0.00012198,2]
[323721587,1714197039938,-555.91,0.00012198,2]
[323721588,1714197039948,-500.0,0.00012198,2]
[323721589,1714197039957,-500.0,0.00012198,2]
[323721590,1714197039966,-500.0,0.00012198,2]
[323721591,1714197039976,-500.0,0.00012198,2]
[323721592,1714197039985,-500.0,0.00012198,2]
[323721593,1714197039994,-500.0,0.00012198,2]
[323721594,1714197040004,-500.0,0.00012198,2]
[323721595,1714197040013,-500.0,0.00012198,2]
[323721596,1714197040024,-283.55502869,0.00012198,2]
[323721608,1714197042546,-539.83314702,0.00010855,2]
[323721609,1714197042556,-216.44497131,0.00012198,2]
[323721610,1714197042565,-500.0,0.00012198,2]
[323721611,1714197042574,-500.0,0.00012198,2]
[323721612,1714197042583,-526.29992962,0.00012198,2]
[323721613,1714197042593,-500.0,0.00012198,2]
[323721614,1714197042602,-500.0,0.00012198,2]
[323721615,1714197042611,-219.2079073,0.00012198,2]
[323721616,1714197042620,-500.0,0.00012198,2]
[323721617,1714197042629,-500.0,0.00012198,2]
[323721618,1714197042638,-337.66357995,0.00012198,2]
[323721619,1714197042647,-507.68826002,0.00012198,2]
[323721620,1714197042657,-264.95163019,0.00012198,2]
[323721621,1714197042668,-503.74916056,0.00012198,2]
[323721622,1714197042677,-500.0,0.00012198,2]
[323721623,1714197042686,-1064.36,0.00012198,2]
[323721624,1714197042695,-503.769699,0.00012198,2]
[323721625,1714197042704,-501.32991098,0.00012198,2]
[323721626,1714197042715,-484.26224179,0.00012198,2]
[323721627,1714197042726,-501.50980824,0.00012198,2]
[323721628,1714197042734,-500.0,0.00012198,2]
[323721629,1714197042747,-1385.19,0.00012198,2]
[323721630,1714197042758,-500.0,0.00012198,2]
[323721631,1714197042766,-735.94,0.00012198,2]
[323721632,1714197042775,-501.72595834,0.00012198,2]
[323721633,1714197042784,-268.13011628,0.00012198,2]
[323721634,1714197042794,-505.94719918,0.00012198,2]
[323721635,1714197042803,-506.14405462,0.00012198,2]
[323721636,1714197042812,-434.86164571,0.00012198,2]
[323721637,1714197042821,-498.65589792,0.00012198,2]
[323721638,1714197042830,-500.0,0.00012198,2]
[323721639,1714197042839,-502.84578681,0.00012198,2]
[323721640,1714197042849,-246.2635078,0.00012198,2]
[323721641,1714197042858,-528.49861833,0.00012198,2]
[323721642,1714197042867,-500.0,0.00012198,2]
[323721644,1714197042876,-500.0,0.00012198,2]
[323721646,1714197042886,-500.0,0.00012198,2]
[323721647,1714197042896,-500.0,0.00012198,2]
[323721648,1714197042906,-913.6,0.00012198,2]
[323721649,1714197042918,-316.21248145,0.00012198,2]
[323721650,1714197042928,-500.0,0.00012198,2]
[323721651,1714197042938,-535.73474572,0.00012198,2]
[323721652,1714197042948,-500.0,0.00012198,2]
[323721653,1714197042957,-289.96386415,0.00012198,2]
[323721654,1714197042966,-500.0,0.00012198,2]
[323721656,1714197042975,-1273.48565223,0.00012198,2]
[323721659,1714197042999,-413.23434777,0.00012198,2]
[323721660,1714197043010,-453.88435912,0.00012198,2]
[323721661,1714197043049,-46.11564088,0.00012198,2]
[323721662,1714197043059,-500.0,0.00012198,2]
[323721663,1714197043069,-334.09631235,0.00012198,2]
[323721664,1714197043081,-165.90368765,0.00012198,2]
[323721665,1714197043090,-1188.04,0.00012198,2]
[323721666,1714197043099,-500.0,0.00012198,2]
[323721667,1714197043108,-500.0,0.00012198,2]
[323721668,1714197043117,-500.0,0.00012198,2]
[323721669,1714197043126,-500.0,0.00012198,2]
[323721670,1714197043136,-598.71,0.00012198,2]
[323721671,1714197043145,-500.0,0.00012198,2]
[323721672,1714197043154,-500.0,0.00012198,2]
[323721673,1714197043163,-500.0,0.00012198,2]
[323721674,1714197043173,-519.67095351,0.00012198,2]
[323721675,1714197043182,-500.0,0.00012198,2]
[323721676,1714197043191,-503.03757725,0.00012198,2]
[323721677,1714197043200,-500.0,0.00012198,2]
[323721678,1714197043210,-500.0,0.00012198,2]
[323721679,1714197043219,-500.0,0.00012198,2]
[323721680,1714197043228,-584.35,0.00012198,2]
[323721681,1714197043237,-500.0,0.00012198,2]